fUSD/lending_fUSD_20240421
["ID","MTS","AMOUNT","RATE_DAILY","PERIOD"]
[323128286,1713697847085,-337.931997,0.00015721,2]
[323128287,1713697847094,-337.931997,0.00015721,2]
[323128288,1713697847103,-345.004373,0.00015721,2]
[323128289,1713697847113,-345.004373,0.00015721,2]
[323128290,1713697847122,-150.0,0.00015722,2]
[323128291,1713697847132,-824984.21036719,0.00015727,2]
[323128292,1713697847150,-1545.88121157,0.00015727,2]
[323128293,1713697847180,-32551.6919324,0.00015727,2]
[323128294,1713697847192,-866.57163133,0.00015727,2]
[323128295,1713697847612,-10000.0,0.0001538,2]
[323128296,1713697847622,-310.35158592,0.00015398,2]
[323128297,1713697847631,-1000.0,0.00015499,2]
[323128298,1713697847640,-151.0,0.00015547,2]
[323128299,1713697847651,-164.67415061,0.00015577,2]
[323128300,1713697847659,-157.06325763,0.00015577,2]
[323128301,1713697847669,-151.0,0.00015587,2]
[323128302,1713697847678,-151.0,0.00015705,2]
[323128303,1713697847688,-21347.00578989,0.00015727,2]
[323128304,1713697847712,-7108.87137147,0.00015727,2]
[323128305,1713697847774,-656.35,0.00015727,2]
[323128306,1713697847807,-151.0,0.00015588,2]
[323128307,1713697847817,-120010.09902212,0.00015727,2]
[323128308,1713697847826,-151.0,0.00015728,2]
[323128309,1713697847835,-151.0,0.00015728,2]
[323128310,1713697847845,-151.0,0.00015728,2]
[323128311,1713697847854,-151.0,0.00015728,2]
[323128312,1713697847863,-151.0,0.00015728,2]
[323128313,1713697847873,-388.789038,0.00015728,2]
[323128314,1713697847884,-388.789038,0.00015728,2]
[323128315,1713697847894,-605.842851,0.00015728,2]
[323128316,1713697847903,-605.842851,0.00015728,2]
[323128317,1713697847912,-352.149187,0.00015728,2]
[323128318,1713697847921,-352.149187,0.00015728,2]
[323128319,1713697847931,-156.240853,0.00015728,2]
[323128320,1713697847940,-156.240853,0.00015728,2]
[323128321,1713697847951,-151.0,0.00015728,2]
[323128322,1713697847960,-151.0,0.00015728,2]
[323128323,1713697847968,-1984.682266,0.00015728,2]
[323128324,1713697847977,-1984.682266,0.00015728,2]
[323128325,1713697847987,-165.73577,0.00015728,2]
[323128326,1713697847996,-165.73577,0.00015728,2]
[323128327,1713697848004,-248.138589,0.00015728,2]
[323128328,1713697848013,-151.974855,0.00015728,2]
[323128329,1713697848022,-248.138589,0.00015728,2]
[323128330,1713697848031,-151.974855,0.00015728,2]
[323128331,1713697848041,-150.0,0.00015728,2]
[323128332,1713697848050,-331.121514,0.00015728,2]
[323128333,1713697848059,-331.121514,0.00015728,2]
[323128334,1713697848068,-163.314784,0.00015728,2]
[323128335,1713697848077,-163.314784,0.00015728,2]
[323128336,1713697848087,-151.0,0.00015728,2]
[323128337,1713697848096,-150.0,0.00015729,2]
[323128338,1713697848104,-150.0,0.00015729,2]
[323128339,1713697848274,-150.0,0.00015731,2]
[323128340,1713697848287,-150.0,0.00015738,2]
[323128341,1713697848296,-150.0,0.00015739,2]
[323128342,1713697848305,-150.0,0.00015741,2]
[323128343,1713697848314,-150.0,0.00015744,2]
[323128344,1713697848323,-150.0,0.00015746,2]
[323128345,1713697848331,-3338.40088929,0.00015747,2]
[323128346,1713697848341,-150.0,0.00015755,2]
[323128347,1713697848350,-150.0,0.00015764,2]
[323128348,1713697848359,-150.0,0.00015773,2]
[323128349,1713697848369,-150.0,0.00015774,2]
[323128350,1713697848378,-150.0,0.00015777,2]
[323128351,1713697848387,-150.0,0.00015777,2]
[323128352,1713697848396,-12108.81238568,0.00015779,2]
[323128353,1713697848405,-151.0,0.00015779,2]
[323128354,1713697848414,-158.096249,0.00015779,2]
[323128355,1713697848423,-158.096251,0.00015779,2]
[323128356,1713697848432,-3492.481418,0.00015779,2]
[323128357,1713697848441,-151.0,0.00015779,2]
[323128358,1713697848453,-3492.48141,0.00015779,2]
[323128359,1713697848462,-151.0,0.00015779,2]
[323128360,1713697848471,-313.26889168,0.0001578,2]
[323128361,1713697848481,-2004.61764998,0.00015781,2]
[323128362,1713697848490,-1725.40406029,0.00015782,2]
[323128363,1713697848500,-150.0,0.00015783,2]
[323128364,1713697848509,-300.0,0.00015784,2]
[323128365,1713697848519,-150.0,0.00015785,2]
[323128366,1713697848528,-150.0,0.00015787,2]
[323128367,1713697848537,-150.0,0.0001579,2]
[323128368,1713697848546,-151.0,0.0001579,2]
[323128369,1713697848556,-51657.28753367,0.00015795,2]
[323128370,1713697848565,-151.0,0.00015795,2]
[323128371,1713697848574,-269.221676,0.00015795,2]
[323128372,1713697848584,-269.221676,0.00015795,2]
[323128373,1713697848593,-151.0,0.00015795,2]
[323128374,1713697848601,-151.0,0.00015795,2]
[323128375,1713697848610,-151.0,0.00015795,2]
[323128376,1713697848619,-159.144833,0.00015795,2]
[323128377,1713697848629,-151.0,0.00015795,2]
[323128378,1713697848639,-388.789038,0.00015795,2]
[323128379,1713697848648,-388.789038,0.00015795,2]
[323128380,1713697848657,-605.842851,0.00015795,2]
[323128381,1713697848666,-605.842851,0.00015795,2]
[323128382,1713697848675,-352.149187,0.00015795,2]
[323128383,1713697848684,-352.149187,0.00015795,2]
[323128384,1713697848694,-156.240853,0.00015795,2]
[323128385,1713697848706,-156.240849,0.00015795,2]
[323128386,1713697848715,-151.0,0.00015795,2]
[323128387,1713697848724,-1984.682266,0.00015795,2]
[323128388,1713697848734,-1984.682275,0.00015795,2]
[323128389,1713697848743,-165.73577,0.00015795,2]
[323128390,1713697848751,-165.735775,0.00015795,2]
[323128391,1713697848760,-248.138589,0.00015795,2]
[323128392,1713697848770,-151.974855,0.00015795,2]
[323128393,1713697848780,-151.974849,0.00015795,2]
[323128394,1713697848789,-248.138598,0.00015795,2]
[323128395,1713697848798,-182.826577,0.00015795,2]
[323128396,1713697848807,-331.121514,0.00015795,2]
[323128397,1713697848816,-182.826571,0.00015795,2]
[323128398,1713697848827,-331.121506,0.00015795,2]
[323128399,1713697848836,-337.931997,0.00015795,2]
[323128400,1713697848845,-337.931992,0.00015795,2]
[323128401,1713697848854,-163.314784,0.00015795,2]
[323128402,1713697848863,-163.314787,0.00015795,2]
[323128403,1713697848872,-345.004373,0.00015795,2]
[323128404,1713697848881,-345.00438,0.00015795,2]
[323128405,1713697848891,-151.0,0.00015798,2]
[323128406,1713697848900,-269.221676,0.00015798,2]
[323128407,1713697848909,-269.221668,0.00015798,2]
[323128408,1713697848918,-151.0,0.00015798,2]
[323128409,1713697848927,-151.0,0.00015798,2]
[323128410,1713697848937,-151.0,0.00015798,2]
[323128411,1713697848948,-274.915248,0.00015798,2]
[323128412,1713697848957,-388.789038,0.00015798,2]
[323128413,1713697848966,-388.789038,0.00015798,2]
[323128414,1713697848975,-605.842851,0.00015798,2]
[323128415,1713697848984,-605.842851,0.00015798,2]
[323128416,1713697848993,-352.149187,0.00015798,2]
[323128417,1713697849002,-352.149187,0.00015798,2]
[323128418,1713697849012,-261.85017646,0.00015799,2]
[323128419,1713697849021,-151.0,0.000158,2]
[323128420,1713697849031,-388.789038,0.000158,2]
[323128421,1713697849040,-388.789033,0.000158,2]
[323128422,1713697849049,-605.842851,0.000158,2]
[323128423,1713697849058,-605.842845,0.000158,2]
[323128424,1713697849067,-352.149187,0.000158,2]
[323128425,1713697849077,-352.149182,0.000158,2]
[323128426,1713697849086,-8600.0,0.000158,5]
[323128427,1713697849096,-73943.54827138,0.000158,5]
[323128428,1713697849114,-1026.58360917,0.000158,5]
[323128429,1713697849137,-0.00221526,0.000158,5]
[323128430,1713697849855,-719.84129831,0.00015498,2]
[323128431,1713697849881,-3056.04011321,0.00015498,2]
[323128432,1713697849892,-155.48773769,0.00015498,2]
[323128433,1713697849903,-150.0,0.00015531,2]
[323128434,1713697849913,-150.0,0.00015556,2]
[323128435,1713697849923,-150.0,0.00015568,2]
[323128436,1713697849932,-150.0,0.00015568,2]
[323128437,1713697849941,-215.55410354,0.00015577,2]
[323128438,1713697849954,-1000.3158744,0.00015577,2]
[323128439,1713697849963,-150.0,0.00015583,2]
[323128440,1713697849972,-150.0,0.00015588,2]
[323128441,1713697849982,-151.0,0.0001559,2]
[323128442,1713697849992,-150.0,0.00015594,2]
[323128443,1713697850002,-150.0,0.00015594,2]
[323128444,1713697850011,-151.0,0.000156,2]
[323128445,1713697850020,-151.0,0.00015616,2]
[323128446,1713697850030,-150.0,0.00015629,2]
[323128447,1713697850039,-246.946747,0.0001565,2]
[323128448,1713697850048,-150.0,0.00015656,2]
[323128449,1713697850057,-150.0,0.00015665,2]
[323128450,1713697850066,-150.0,0.00015675,2]
[323128451,1713697850075,-150.0,0.00015688,2]
[323128452,1713697850085,-150.0,0.00015695,2]
[323128453,1713697850094,-150.0,0.00015697,2]
[323128454,1713697850103,-150.0,0.00015774,2]
[323128455,1713697850112,-5090.41529233,0.000158,5]
[323128456,1713697850124,-6569.46029,0.000158,5]
[323128457,1713697850136,-2273.83887988,0.000158,5]
[323128458,1713697850162,-150.0,0.00015728,2]
[323128459,1713697850172,-150.0,0.00015731,2]
[323128460,1713697850182,-346.03539,0.000158,5]
[323128461,1713697850193,-488814.65666003,0.000158,5]
[323128462,1713697850204,-159.02,0.00015808,2]
[323128463,1713697850215,-168.36,0.00015831,2]
[323128464,1713697850224,-167.0,0.00015831,2]
[323128465,1713697850234,-166.86,0.00015831,2]
[323128466,1713697850244,-1000.0,0.000159,2]
[323128467,1713697850254,-1000.0,0.000159,2]
[323128468,1713697850264,-1000.0,0.000159,2]
[323128469,1713697850273,-1000.0,0.000159,2]
[323128470,1713697850283,-1000.0,0.000159,2]
[323128471,1713697850292,-12606.8557406,0.000159,2]
[323128472,1713697850302,-1700.0,0.000159,5]
[323128473,1713697850311,-7999.56941787,0.000159,2]
[323128474,1713697850321,-16528.61377039,0.00015927,2]
[323128475,1713697850330,-32258.86898067,0.0001599,2]
[323128476,1713697850341,-1116.13338787,0.00015996,2]
[323128477,1713697850350,-309.29582041,0.00015996,2]
[323128478,1713697850546,-174.12211115,0.00015996,2]
[323128479,1713697850555,-349.66421308,0.00015996,2]
[323128480,1713697850565,-32674.76521116,0.00015998,2]
[323128481,1713697850605,-157.26052881,0.00015498,2]
[323128482,1713697850615,-150.0,0.00015551,2]
[323128483,1713697850624,-150.0,0.00015701,2]
[323128484,1713697850633,-227832.77024083,0.00015998,2]
[323128485,1713697850652,-150.0,0.00015742,2]
[323128486,1713697850662,-169.50316463,0.00015998,2]
[323128487,1713697850673,-1873.43214159,0.00015998,2]
[323128488,1713697850708,-371.88291753,0.00015498,2]
[323128489,1713697850719,-83.29609677,0.00015498,2]
[323128490,1713697850728,-1241.50390323,0.00015998,2]
[323128491,1713697850739,-6561.23247747,0.00015998,2]
[323128492,1713697850750,-2800.27684168,0.00015998,2]
[323128506,1713698309393,164.83706291,0.000145,5]
[323128551,1713699031982,-210.55984644,0.00012575,2]
[323128552,1713699031991,-176.95116047,0.00012576,2]
[323128553,1713699032003,-355.52000041,0.00012576,2]
[323128554,1713699032015,-1243.80891472,0.00012576,2]
[323128555,1713699032025,-363.15940458,0.00012577,2]
[323128556,1713699032035,-150.0,0.00012577,2]
[323128557,1713699032045,-43.7116807,0.00012578,2]
[323128558,1713699032056,-2095.2730769,0.00012578,2]
[323128559,1713699032068,-2182.86932816,0.00012578,2]
[323128560,1713699032078,-2321.35455575,0.00012578,2]
[323128561,1713699032087,-829.07023021,0.00012581,2]
[323128562,1713699032097,-518.55958462,0.00012587,2]
[323128563,1713699032106,-491.35,0.00012688,2]
[323128564,1713699032115,-150.0,0.00013835,2]
[323128565,1713699032125,-5686.26051827,0.00014499,2]
[323128566,1713699032136,-399.17869127,0.000145,2]
[323128567,1713699032147,-249.17103592,0.000145,2]
[323128568,1713699032159,-1087.32170095,0.000145,2]
[323128569,1713699032182,-689.30241408,0.000145,2]
[323128570,1713699032193,-434.33736611,0.000145,2]
[323128571,1713699032216,-1004.02797844,0.000145,2]
[323128572,1713699032227,-1400.0,0.000145,2]
[323128573,1713699032238,-4018.02751199,0.000145,2]
[323128574,1713699032250,-6127.228,0.000145,2]
[323128575,1713699032261,-51.5177873,0.000145,2]
[323128576,1713699032270,-174.07,0.00014575,2]
[323128577,1713699032280,-1145.18,0.00014593,2]
[323128578,1713699032289,-2052.81,0.00014594,2]
[323128579,1713699032299,-57.0422127,0.00014605,2]
[323128580,1713699032318,-18064.2677873,0.00014605,2]
[323128581,1713699032328,-1000.0,0.00014623,2]
[323128582,1713699032337,-1165.78929161,0.00014628,2]
[323128584,1713699032347,-2185.79,0.0001463,2]
[323128586,1713699032355,-452.51,0.00014696,2]
[323128588,1713699032366,-173.74,0.00014697,2]
[323128589,1713699032375,-173.74,0.00014889,2]
[323128590,1713699032384,-491.35,0.00014951,2]
[323128591,1713699032393,-750.0,0.00015,2]
[323128592,1713699032402,-3068.14352187,0.00015,2]
[323128593,1713699032411,-323.80854154,0.00015079,2]
[323128594,1713699032421,-173.74,0.0001508,2]
[323128595,1713699032430,-7216.11194195,0.00015267,2]
[323128596,1713699032441,-173.74,0.00015272,2]
[323128597,1713699032450,-2290.10136835,0.00015379,2]
[323128598,1713699032463,-173.74,0.00015463,2]
[323128599,1713699032472,-184.01207605,0.00015488,2]
[323128600,1713699032481,-162.13640766,0.00015497,2]
[323128601,1713699032490,-156.51562963,0.00015497,2]
[323128602,1713699032499,-192.56367709,0.00015497,2]
[323128603,1713699032508,-228.19119766,0.00015497,2]
[323128604,1713699032517,-155.28981591,0.00015498,2]
[323128605,1713699032527,-1000.5621,0.00015499,2]
[323128606,1713699032540,-1000.0,0.000155,2]
[323128607,1713699032549,-150.0,0.000155,2]
[323128608,1713699032558,-150.0,0.0001553,2]
[323128609,1713699032567,-150.0,0.00015533,2]
[323128610,1713699032577,-150.0,0.00015558,2]
[323128611,1713699032586,-150.0,0.00015619,2]
[323128612,1713699032595,-300.0,0.000157,5]
[323128613,1713699032604,-773.0,0.00015702,2]
[323128614,1713699032614,-150.0,0.00015723,2]
[323128615,1713699032624,-3207.01491362,0.00015725,2]
[323128616,1713699032634,-155.1416761,0.00015725,2]
[323128617,1713699032644,-182.92510726,0.00015725,2]
[323128618,1713699032653,-156.76513354,0.00015725,2]
[323128619,1713699032663,-268.35852299,0.00015727,2]
[323128620,1713699032672,-150.0,0.00015729,2]
[323128621,1713699032682,-150.0,0.0001573,2]
[323128622,1713699032691,-300.0,0.00015733,2]
[323128623,1713699032700,-150.0,0.00015735,2]
[323128624,1713699032713,-150.0,0.0001574,2]
[323128625,1713699032723,-150.0,0.00015741,2]
[323128626,1713699032733,-150.0,0.00015741,2]
[323128627,1713699032743,-150.0,0.00015742,2]
[323128628,1713699032752,-150.0,0.00015742,2]
[323128629,1713699032761,-150.0,0.00015744,2]
[323128630,1713699032771,-150.0,0.00015747,2]
[323128631,1713699032781,-150.0,0.00015749,2]
[323128632,1713699032791,-150.0,0.00015749,2]
[323128633,1713699032801,-150.0,0.00015757,2]
[323128634,1713699032810,-150.0,0.00015758,2]
[323128635,1713699032820,-150.0,0.00015762,2]
[323128636,1713699032830,-302.54848145,0.00015763,2]
[323128637,1713699032841,-1500.0,0.00015764,2]
[323128638,1713699032850,-150.0,0.00015767,2]
[323128639,1713699032860,-150.0,0.00015769,2]
[323128640,1713699032870,-150.0,0.0001577,2]
[323128641,1713699032879,-150.0,0.00015771,2]
[323128642,1713699032889,-150.0,0.00015772,2]
[323128643,1713699032898,-150.0,0.00015776,2]
[323128644,1713699032908,-150.0,0.00015779,2]
[323128645,1713699032917,-150.0,0.0001578,2]
[323128646,1713699032926,-150.0,0.0001578,2]
[323128647,1713699032935,-150.0,0.00015781,2]
[323128648,1713699032945,-150.0,0.00015785,2]
[323128649,1713699032955,-150.0,0.00015786,2]
[323128650,1713699032966,-150.0,0.00015786,2]
[323128651,1713699032976,-150.0,0.00015787,2]
[323128652,1713699032985,-150.0,0.00015787,2]
[323128653,1713699032994,-150.0,0.00015788,2]
[323128654,1713699033004,-300.0,0.00015789,2]
[323128655,1713699033012,-150.0,0.00015793,2]
[323128656,1713699033022,-300.0,0.00015795,2]
[323128657,1713699033031,-150.0,0.00015795,2]
[323128658,1713699033041,-700.0,0.000158,5]
[323128659,1713699033050,-1000.0,0.000158,2]
[323128660,1713699033059,-300.0,0.00015802,2]
[323128661,1713699033068,-150.0,0.00015804,2]
[323128662,1713699033077,-150.0,0.0001581,2]
[323128663,1713699033086,-1000.0,0.0001581,2]
[323128664,1713699033095,-150.0,0.00015811,2]
[323128665,1713699033104,-300.0,0.00015812,2]
[323128666,1713699033113,-150.0,0.00015813,2]
[323128667,1713699033122,-150.0,0.00015814,2]
[323128668,1713699033131,-150.0,0.00015816,2]
[323128669,1713699033141,-150.0,0.00015817,2]
[323128670,1713699033151,-150.0,0.00015817,2]
[323128671,1713699033161,-150.0,0.00015817,2]
[323128672,1713699033170,-150.0,0.00015824,2]
[323128673,1713699033180,-150.0,0.00015827,2]
[323128674,1713699033189,-150.0,0.00015827,2]
[323128675,1713699033201,-150.0,0.00015828,2]
[323128676,1713699033216,-150.0,0.0001583,2]
[323128677,1713699033226,-150.0,0.0001583,2]
[323128678,1713699033236,-150.0,0.0001583,2]
[323128679,1713699033245,-150.0,0.00015831,2]
[323128680,1713699033255,-301.68072993,0.00015833,2]
[323128681,1713699033265,-150.0,0.00015835,2]
[323128682,1713699033276,-150.0,0.00015837,2]
[323128683,1713699033286,-150.0,0.00015838,2]
[323128684,1713699033295,-150.0,0.00015841,2]
[323128685,1713699033306,-150.0,0.00015842,2]
[323128686,1713699033318,-150.0,0.00015842,2]
[323128687,1713699033328,-1000.0,0.0001585,2]
[323128688,1713699033338,-150.0,0.00015852,2]
[323128689,1713699033348,-150.0,0.00015855,2]
[323128690,1713699033359,-150.0,0.0001586,2]
[323128691,1713699033368,-150.0,0.00015863,2]
[323128692,1713699033378,-300.0,0.00015866,2]
[323128693,1713699033388,-150.0,0.00015868,2]
[323128694,1713699033398,-150.0,0.00015868,2]
[323128695,1713699033409,-500.0,0.00015869,2]
[323128696,1713699033421,-200.0,0.0001587,2]
[323128697,1713699033431,-1000.0,0.0001587,2]
[323128698,1713699033443,-500.0,0.0001587,2]
[323128699,1713699033453,-200.0,0.0001587,2]
[323128700,1713699033469,-150.0,0.0001587,2]
[323128701,1713699033479,-150.0,0.00015872,2]
[323128702,1713699033489,-150.0,0.00015876,2]
[323128703,1713699033500,-150.0,0.00015878,2]
[323128704,1713699033509,-150.0,0.00015878,2]
[323128705,1713699033518,-150.0,0.00015879,2]
[323128706,1713699033530,-150.0,0.0001588,2]
[323128707,1713699033542,-150.0,0.00015881,2]
[323128708,1713699033552,-150.0,0.00015886,2]
[323128709,1713699033561,-1000.0,0.0001589,2]
[323128710,1713699033572,-182.175179,0.0001589,2]
[323128711,1713699033581,-150.0,0.00015891,2]
[323128712,1713699033590,-359.6044,0.00015896,2]
[323128713,1713699033599,-182.61949667,0.00015896,2]
[323128714,1713699033609,-186.4240695,0.00015896,2]
[323128715,1713699033619,-150.0,0.00015897,2]
[323128716,1713699033629,-159.79205956,0.00015897,2]
[323128717,1713699033638,-150.0,0.00015898,2]
[323128718,1713699033647,-2722.07749151,0.00015898,2]
[323128719,1713699033660,-696.77431602,0.00015898,2]
[323128720,1713699033886,-519.01089523,0.00015898,2]
[323128721,1713699033916,-1411.54365452,0.00015898,2]
[323128722,1713699033927,-286.18192272,0.00015898,2]
[323128723,1713699033938,-346.082238,0.00015898,2]
[323128724,1713699033950,-670.45812629,0.00015898,2]
[323128746,1713699038079,-150.0,0.00015708,2]
[323128748,1713699038089,-150.0,0.00015711,2]
[323128750,1713699038099,-150.0,0.00015716,2]
[323128752,1713699038109,-150.0,0.0001572,2]
[323128754,1713699038119,-150.0,0.00015722,2]
[323128756,1713699038129,-150.0,0.00015726,2]
[323128757,1713699038138,-150.0,0.00015726,2]
[323128758,1713699038148,-150.0,0.00015733,2]
[323128759,1713699038157,-92.32677762,0.00015735,2]
[323128760,1713699038181,-150.0,0.00015728,2]
[323128761,1713699038190,-57.67322238,0.00015735,2]
[323128762,1713699038200,-150.0,0.00015735,2]
[323128763,1713699038210,-115.66514022,0.00015744,2]
[323128764,1713699038270,-150.0,0.00015707,2]
[323128765,1713699038280,-34.33485978,0.00015744,2]
[323128766,1713699038289,-150.0,0.00015748,2]
[323128767,1713699038298,-150.0,0.00015752,2]
[323128768,1713699038307,-150.0,0.00015759,2]
[323128769,1713699038316,-150.0,0.00015761,2]
[323128770,1713699038325,-150.0,0.00015766,2]
[323128771,1713699038334,-43.35763969,0.00015766,2]
[323128772,1713699038396,-106.64236031,0.00015766,2]
[323128773,1713699038405,-150.0,0.00015767,2]
[323128774,1713699038415,-150.0,0.00015768,2]
[323128776,1713699038423,-150.0,0.00015769,2]
[323128778,1713699038433,-150.0,0.00015769,2]
[323128780,1713699038443,-150.0,0.0001577,2]
[323128782,1713699038452,-150.0,0.00015777,2]
[323128784,1713699038463,-150.0,0.00015779,2]
[323128786,1713699038472,-150.0,0.00015781,2]
[323128788,1713699038480,-150.0,0.00015789,2]
[323128790,1713699038489,-150.0,0.00015792,2]
[323128792,1713699038528,-150.0,0.00015793,2]
[323128794,1713699038539,-150.0,0.000158,2]
[323128795,1713699038549,-150.0,0.00015815,2]
[323128798,1713699038560,-150.0,0.0001582,2]
[323128800,1713699038571,-150.0,0.00015822,2]
[323128801,1713699038582,-150.0,0.00015823,2]
[323128804,1713699038592,-150.0,0.00015824,2]
[323128805,1713699038600,-150.0,0.00015831,2]
[323128807,1713699038610,-150.0,0.00015834,2]
[323128810,1713699038619,-150.0,0.00015834,2]
[323128811,1713699038630,-150.0,0.00015835,2]
[323128813,1713699038640,-150.0,0.00015837,2]
[323128815,1713699038650,-150.0,0.00015838,2]
[323128817,1713699038659,-150.0,0.00015841,2]
[323128819,1713699038668,-150.0,0.00015842,2]
[323128821,1713699038677,-150.0,0.00015844,2]
[323128823,1713699038687,-150.0,0.00015853,2]
[323128825,1713699038696,-150.0,0.00015857,2]
[323128827,1713699038705,-150.0,0.00015863,2]
[323128830,1713699038717,-150.0,0.00015869,2]
[323128832,1713699038728,-150.0,0.0001587,2]
[323128834,1713699038737,-150.0,0.00015871,2]
[323128836,1713699038746,-150.0,0.00015878,2]
[323128838,1713699038756,-150.0,0.00015879,2]
[323128840,1713699038766,-150.0,0.00015881,2]
[323128842,1713699038775,-150.0,0.00015885,2]
[323128844,1713699038784,-150.0,0.00015887,2]
[323128846,1713699038794,-150.0,0.00015887,2]
[323128848,1713699038803,-150.0,0.00015892,2]
[323128850,1713699038812,-150.0,0.00015892,2]
[323128852,1713699038821,-6657.72090829,0.00015898,2]
[323128854,1713699038830,-154.17258646,0.00015898,2]
[323128856,1713699038839,-182.26159151,0.00015898,2]
[323128858,1713699038848,-11967.96267342,0.00015898,2]
[323128860,1713699038857,-150.0,0.00015899,2]
[323128862,1713699038866,-150.0,0.00015899,2]
[323128864,1713699038875,-150.0,0.00015899,2]
[323128865,1713699038884,-482.0,0.000159,2]
[323128867,1713699038893,-2837.0,0.000159,2]
[323128869,1713699038902,-12606.8557406,0.000159,2]
[323128871,1713699038911,-1000.0,0.000159,5]
[323128873,1713699038921,-40000.0,0.000159,2]
[323128875,1713699038930,-150.46400573,0.00015902,2]
[323128877,1713699038939,-150.0,0.00015902,2]
[323128879,1713699038949,-150.0,0.00015906,2]
[323128882,1713699038959,-150.0,0.0001591,2]
[323128884,1713699038970,-150.0,0.00015911,2]
[323128885,1713699038981,-150.0,0.00015913,2]
[323128887,1713699038990,-150.0,0.00015915,2]
[323128889,1713699038999,-150.0,0.00015917,2]
[323128891,1713699039008,-150.0,0.00015918,2]
[323128893,1713699039017,-150.0,0.00015918,2]
[323128895,1713699039027,-150.0,0.00015918,2]
[323128897,1713699039035,-150.0,0.00015919,2]
[323128899,1713699039045,-150.0,0.0001592,2]
[323128901,1713699039056,-150.0,0.0001592,2]
[323128903,1713699039065,-150.0,0.00015921,2]
[323128905,1713699039074,-150.0,0.00015921,2]
[323128908,1713699039084,-150.0,0.00015922,2]
[323128910,1713699039093,-150.0,0.00015923,2]
[323128911,1713699039102,-150.0,0.00015927,2]
[323128914,1713699039111,-1488.02446358,0.00015929,2]
[323128915,1713699039120,-150.0,0.0001593,2]
[323128918,1713699039130,-150.0,0.00015932,2]
[323128920,1713699039139,-150.0,0.00015932,2]
[323128922,1713699039148,-150.0,0.00015934,2]
[323128924,1713699039157,-150.0,0.00015935,2]
[323128926,1713699039166,-150.0,0.00015936,2]
[323128928,1713699039176,-150.0,0.00015938,2]
[323128930,1713699039185,-150.0,0.00015939,2]
[323128932,1713699039193,-150.0,0.00015944,2]
[323128934,1713699039202,-150.0,0.00015946,2]
[323128935,1713699039211,-150.0,0.00015946,2]
[323128938,1713699039221,-150.0,0.00015946,2]
[323128940,1713699039230,-150.0,0.0001595,2]
[323128942,1713699039239,-150.0,0.0001595,2]
[323128943,1713699039248,-150.0,0.0001595,2]
[323128945,1713699039257,-61.68726047,0.00015951,2]
[323129109,1713699040647,-150.0,0.00015713,2]
[323129110,1713699040656,-150.0,0.00015724,2]
[323129111,1713699040666,-150.0,0.00015737,2]
[323129112,1713699040675,-150.0,0.00015745,2]
[323129113,1713699040685,-150.0,0.0001576,2]
[323129114,1713699040694,-68.47246834,0.00015762,2]
[323129115,1713699040706,-81.52753166,0.00015762,2]
[323129116,1713699040717,-150.0,0.00015763,2]
[323129117,1713699040726,-150.0,0.00015768,2]
[323129118,1713699040735,-150.0,0.00015772,2]
[323129119,1713699040744,-150.0,0.00015775,2]